[Event "*** Titled Tuesday Blitz"]
[Site "Chess.com"]
[Date "2020.02.04"]
[Round "4"]
[White "FelixJoseYnojosa"]
[Black "Micki-taryan"]
[Result "1-0"]
[WhiteElo "2662"]
[BlackElo "2989"]
[TimeControl "180+2"]
[EndTime "13:53:34 PST"]
[Termination "FelixJoseYnojosa won by resignation"]

1. e4 {[%clk 0:03:01.9]} 1... c5 {[%clk 0:03:00.6]} 2. c3 {[%clk 0:03:02.6]}
2... d6 {[%clk 0:02:57.9]} 3. d4 {[%clk 0:03:03.1]} 3... Qc7 {[%clk 0:02:58]} 4.
Be3 {[%clk 0:03:00.2]} 4... Nf6 {[%clk 0:02:58.5]} 5. Nd2 {[%clk 0:02:59.4]}
5... g6 {[%clk 0:02:59.1]} 6. h3 {[%clk 0:02:58.8]} 6... Bg7 {[%clk 0:03:00.3]}
7. f4 {[%clk 0:03:00]} 7... O-O {[%clk 0:02:59.2]} 8. Ngf3 {[%clk 0:03:01.3]}
8... Nbd7 {[%clk 0:02:55.1]} 9. Bd3 {[%clk 0:02:56.9]} 9... e5 {[%clk
0:02:51.2]} 10. O-O {[%clk 0:02:49.8]} 10... Nh5 {[%clk 0:02:47.5]} 11. f5
{[%clk 0:02:38.8]} 11... Nf4 {[%clk 0:02:30.5]} 12. Bxf4 {[%clk 0:02:29.2]}
12... exf4 {[%clk 0:02:32.4]} 13. Qe1 {[%clk 0:02:26.9]} 13... Nf6 {[%clk
0:02:25.6]} 14. Qh4 {[%clk 0:02:24.3]} 14... Nh5 {[%clk 0:02:26.8]} 15. Rae1
{[%clk 0:01:52.3]} 15... Qd8 {[%clk 0:02:21.1]} 16. Qg4 {[%clk 0:01:30.6]} 16...
cxd4 {[%clk 0:02:20.6]} 17. cxd4 {[%clk 0:01:21.3]} 17... d5 {[%clk 0:02:10.8]}
18. e5 {[%clk 0:01:11.5]} 18... Ng3 {[%clk 0:02:12.1]} 19. Qxf4 {[%clk
0:00:58.1]} 19... Nxf5 {[%clk 0:02:11.8]} 20. g4 {[%clk 0:00:37.7]} 20... Bh6
{[%clk 0:02:06]} 21. g5 {[%clk 0:00:34.2]} 21... Bg7 {[%clk 0:02:07.5]} 22. Rf2
{[%clk 0:00:15.7]} 22... Be6 {[%clk 0:02:07.6]} 23. Nh2 {[%clk 0:00:16.5]} 23...
h5 {[%clk 0:02:08.2]} 24. Nhf1 {[%clk 0:00:07.9]} 24... Qb6 {[%clk 0:01:59.9]}
25. Nf3 {[%clk 0:00:09]} 25... Rac8 {[%clk 0:01:58.9]} 26. h4 {[%clk 0:00:09.8]}
26... Ne7 {[%clk 0:01:59.4]} 27. Ng3 {[%clk 0:00:09.6]} 27... Bg4 {[%clk
0:01:59.6]} 28. Nh2 {[%clk 0:00:10]} 28... Be6 {[%clk 0:02:00.9]} 29. Nf3 {[%clk
0:00:08.6]} 29... Rc6 {[%clk 0:02:01.2]} 30. Ref1 {[%clk 0:00:09.5]} 30... Rfc8
{[%clk 0:02:02.3]} 31. Qe3 {[%clk 0:00:06.7]} 31... Bh3 {[%clk 0:02:00.9]} 32.
Re1 {[%clk 0:00:07.1]} 32... Bg4 {[%clk 0:02:02.6]} 33. Nh2 {[%clk 0:00:07.6]}
33... Be6 {[%clk 0:02:04.3]} 34. Nf3 {[%clk 0:00:08.8]} 34... Qc7 {[%clk
0:02:02.8]} 35. Ne2 {[%clk 0:00:08.9]} 35... Nf5 {[%clk 0:02:01.9]} 36. Qd2
{[%clk 0:00:07.3]} 36... Qb6 {[%clk 0:01:59.9]} 37. Ref1 {[%clk 0:00:08]} 37...
a5 {[%clk 0:02:00.6]} 38. a3 {[%clk 0:00:08.8]} 38... a4 {[%clk 0:02:01.1]} 39.
Bb1 {[%clk 0:00:10]} 39... Qb3 {[%clk 0:01:58.8]} 40. Nf4 {[%clk 0:00:10.3]}
40... Ne3 {[%clk 0:01:50.1]} 41. Re1 {[%clk 0:00:09.2]} 41... Ng4 {[%clk
0:01:34.5]} 42. Rff1 {[%clk 0:00:06.7]} 42... Rc2 {[%clk 0:01:28.7]} 43. Bxc2
{[%clk 0:00:06.7]} 43... Rxc2 {[%clk 0:01:30.6]} 44. Qd3 {[%clk 0:00:06.3]}
44... Qxb2 {[%clk 0:01:31.2]} 45. Re2 {[%clk 0:00:07.5]} 45... Rxe2 {[%clk
0:01:29.5]} 46. Qxe2 {[%clk 0:00:05.5]} 46... Qxa3 {[%clk 0:01:30.7]} 47. Nxe6
{[%clk 0:00:06.7]} 47... fxe6 {[%clk 0:01:32.6]} 48. Rb1 {[%clk 0:00:04.6]}
48... Qc3 {[%clk 0:01:27.8]} 49. Rxb7 {[%clk 0:00:05]} 49... a3 {[%clk
0:01:29.7]} 50. Ra7 {[%clk 0:00:04.6]} 50... Qc1+ {[%clk 0:01:31.1]} 51. Kg2
{[%clk 0:00:05.4]} 51... Ne3+ {[%clk 0:01:31.3]} 52. Kf2 {[%clk 0:00:06.3]}
52... Nf5 {[%clk 0:01:33.2]} 53. Qb5 {[%clk 0:00:06.3]} 53... Qe3+ {[%clk
0:01:25.4]} 54. Kg2 {[%clk 0:00:06.6]} 54... Qf4 {[%clk 0:01:27]} 55. Rxa3
{[%clk 0:00:06.9]} 55... Kh7 {[%clk 0:01:20.5]} 56. Qd3 {[%clk 0:00:06.6]} 56...
Nxh4+ {[%clk 0:01:18]} 57. Nxh4 {[%clk 0:00:08.5]} 57... Qxh4 {[%clk 0:01:19.9]}
58. Qe3 {[%clk 0:00:09.2]} 58... Qg4+ {[%clk 0:01:17.5]} 59. Kf2 {[%clk
0:00:10.8]} 59... Qf5+ {[%clk 0:01:18.3]} 60. Kg3 {[%clk 0:00:11.3]} 60... Bf8
{[%clk 0:01:18.4]} 61. Ra7+ {[%clk 0:00:11.9]} 61... Kg8 {[%clk 0:01:20.2]} 62.
Qf4 {[%clk 0:00:12.8]} 62... h4+ {[%clk 0:01:15.8]} 63. Kf3 {[%clk 0:00:13.7]}
63... Bb4 {[%clk 0:00:44.8]} 64. Qxf5 {[%clk 0:00:14.3]} 64... gxf5 {[%clk
0:00:46.7]} 65. g6 {[%clk 0:00:14.1]} 65... Bc3 {[%clk 0:00:44.6]} 66. Re7
{[%clk 0:00:15]} 66... Bxd4 {[%clk 0:00:45.2]} 67. Rxe6 {[%clk 0:00:16.5]} 67...
Kg7 {[%clk 0:00:44.1]} 68. Kf4 {[%clk 0:00:17.1]} 68... h3 {[%clk 0:00:43.5]}
69. Kxf5 {[%clk 0:00:09.9]} 69... Bc5 {[%clk 0:00:39.1]} 70. Rc6 {[%clk
0:00:10.2]} 70... h2 {[%clk 0:00:40.7]} 71. Rc7+ {[%clk 0:00:11.4]} 71... Kg8
{[%clk 0:00:42.5]} 72. Rh7 {[%clk 0:00:13]} 72... Bg1 {[%clk 0:00:40.6]} 73. e6
{[%clk 0:00:14.1]} 73... h1=Q {[%clk 0:00:41.6]} 74. Rxh1 {[%clk 0:00:14.5]} 1-0

[Event "*** Titled Tuesday Blitz"]
[Site "Chess.com"]
[Date "2020.02.04"]
[Round "4"]
[White "DanielDardha2005"]
[Black "Shtembuliak"]
[Result "1-0"]
[WhiteElo "2652"]
[BlackElo "2795"]
[TimeControl "180+2"]
[EndTime "13:53:47 PST"]
[Termination "DanielDardha2005 won by resignation"]

1. Nf3 {[%clk 0:03:01.9]} 1... Nf6 {[%clk 0:02:57.4]} 2. g3 {[%clk 0:03:02.6]}
2... g6 {[%clk 0:02:57.3]} 3. Bg2 {[%clk 0:03:03.8]} 3... Bg7 {[%clk 0:02:59.2]}
4. b3 {[%clk 0:03:04.9]} 4... O-O {[%clk 0:03:01.1]} 5. Bb2 {[%clk 0:03:06]}
5... d6 {[%clk 0:03:01.7]} 6. d4 {[%clk 0:03:07]} 6... a5 {[%clk 0:03:02.7]} 7.
a4 {[%clk 0:03:06.7]} 7... b6 {[%clk 0:02:49.2]} 8. O-O {[%clk 0:03:01.9]} 8...
Bb7 {[%clk 0:02:49.9]} 9. Nbd2 {[%clk 0:03:03.2]} 9... Nbd7 {[%clk 0:02:50.6]}
10. Re1 {[%clk 0:03:03.5]} 10... e6 {[%clk 0:02:37.3]} 11. e4 {[%clk 0:03:03.7]}
11... Re8 {[%clk 0:02:38.7]} 12. Qe2 {[%clk 0:02:55.6]} 12... h6 {[%clk
0:02:38.5]} 13. h3 {[%clk 0:02:56.1]} 13... Qe7 {[%clk 0:02:38.8]} 14. Rad1
{[%clk 0:02:51.7]} 14... Kh7 {[%clk 0:02:35.9]} 15. e5 {[%clk 0:02:47.2]} 15...
Nd5 {[%clk 0:02:27]} 16. Ne4 {[%clk 0:02:45.6]} 16... f5 {[%clk 0:02:19.1]} 17.
exf6 {[%clk 0:02:42.4]} 17... N7xf6 {[%clk 0:02:19.5]} 18. Nxf6+ {[%clk
0:02:39.6]} 18... Qxf6 {[%clk 0:02:15.6]} 19. c4 {[%clk 0:02:36.8]} 19... Nb4
{[%clk 0:02:15.6]} 20. Ng5+ {[%clk 0:02:37.5]} 20... Qxg5 {[%clk 0:02:16.4]} 21.
Bxb7 {[%clk 0:02:39.4]} 21... Rab8 {[%clk 0:02:16.7]} 22. Bg2 {[%clk 0:02:40.9]}
22... Qf6 {[%clk 0:01:57.2]} 23. h4 {[%clk 0:02:40.4]} 23... Re7 {[%clk
0:01:53.3]} 24. Ba1 {[%clk 0:02:39.7]} 24... Qf7 {[%clk 0:01:51.1]} 25. Be4
{[%clk 0:02:38.3]} 25... Kh8 {[%clk 0:01:41.8]} 26. Qg4 {[%clk 0:02:38.2]} 26...
d5 {[%clk 0:01:37.1]} 27. Bxg6 {[%clk 0:02:37.1]} 27... Qf6 {[%clk 0:01:38.2]}
28. cxd5 {[%clk 0:02:27.7]} 28... Nxd5 {[%clk 0:01:35.5]} 29. Bb1 {[%clk
0:02:21.8]} 29... Rf8 {[%clk 0:01:35.5]} 30. Re2 {[%clk 0:02:20.4]} 30... Kg8
{[%clk 0:01:24.3]} 31. Rde1 {[%clk 0:02:16.7]} 31... c5 {[%clk 0:01:06]} 32.
dxc5 {[%clk 0:02:02.3]} 32... e5 {[%clk 0:00:46.4]} 33. Qc4 {[%clk 0:01:55.1]}
33... Qf7 {[%clk 0:00:46.9]} 34. Be4 {[%clk 0:01:52.9]} 34... Nf6 {[%clk
0:00:43.6]} 35. Qxf7+ {[%clk 0:01:53.5]} 35... Kxf7 {[%clk 0:00:45.5]} 36. cxb6
{[%clk 0:01:54.5]} 36... Rb8 {[%clk 0:00:46.3]} 37. b7 {[%clk 0:01:48.5]} 37...
Nxe4 {[%clk 0:00:46.6]} 38. Rxe4 {[%clk 0:01:50.4]} 38... Rbxb7 {[%clk
0:00:46.8]} 39. Bxe5 {[%clk 0:01:50.8]} 39... Rb4 {[%clk 0:00:25.5]} 40. R4e3
{[%clk 0:01:32.7]} 40... Bf8 {[%clk 0:00:14.3]} 41. Bf4 {[%clk 0:01:29.5]} 41...
Reb7 {[%clk 0:00:10.6]} 42. Rb1 {[%clk 0:01:11.2]} 42... Rxa4 {[%clk 0:00:09.8]}
43. Rf3 {[%clk 0:01:06.7]} 43... Kg8 {[%clk 0:00:06.1]} 44. Rc1 {[%clk
0:00:49.9]} 44... Rab4 {[%clk 0:00:04.8]} 45. Rc8 {[%clk 0:00:50.9]} 45... Rf7
{[%clk 0:00:03.7]} 46. Rd3 {[%clk 0:00:47.3]} 46... Kh7 {[%clk 0:00:04.3]} 47.
Ra8 {[%clk 0:00:34.4]} 47... Rb5 {[%clk 0:00:05.3]} 48. Kg2 {[%clk 0:00:31.7]}
48... Bg7 {[%clk 0:00:05.6]} 49. Be3 {[%clk 0:00:32.5]} 49... Rfb7 {[%clk
0:00:05.9]} 50. Bd2 {[%clk 0:00:29.9]} 50... Rxb3 {[%clk 0:00:06.7]} 51. Rxb3
{[%clk 0:00:30.9]} 51... Rxb3 {[%clk 0:00:08.6]} 52. Rxa5 {[%clk 0:00:32.3]}
52... Rd3 {[%clk 0:00:09.3]} 53. Be3 {[%clk 0:00:33.1]} 53... Rd7 {[%clk
0:00:08]} 54. Kf3 {[%clk 0:00:33.8]} 54... Rf7+ {[%clk 0:00:07.6]} 55. Bf4
{[%clk 0:00:34.1]} 55... Kg6 {[%clk 0:00:07.9]} 56. h5+ {[%clk 0:00:33.4]} 56...
Kh7 {[%clk 0:00:08.5]} 57. Rd5 {[%clk 0:00:33.8]} 57... Rb7 {[%clk 0:00:09.1]}
58. Kg4 {[%clk 0:00:34.5]} 58... Rf7 {[%clk 0:00:09.7]} 59. Be3 {[%clk
0:00:34.8]} 59... Re7 {[%clk 0:00:10.3]} 60. Kf5 {[%clk 0:00:34.1]} 60... Rf7+
{[%clk 0:00:11.4]} 61. Ke4 {[%clk 0:00:34.3]} 61... Re7+ {[%clk 0:00:12]} 62.
Kd3 {[%clk 0:00:35.6]} 62... Rf7 {[%clk 0:00:13.3]} 63. f4 {[%clk 0:00:36.5]}
63... Rb7 {[%clk 0:00:11.6]} 64. Ke4 {[%clk 0:00:37.4]} 64... Re7+ {[%clk
0:00:11.7]} 65. Kf3 {[%clk 0:00:38.6]} 65... Bf6 {[%clk 0:00:11.8]} 66. g4
{[%clk 0:00:39.8]} 66... Rf7 {[%clk 0:00:11.5]} 67. Rf5 {[%clk 0:00:38.3]} 67...
Kg8 {[%clk 0:00:10.4]} 68. g5 {[%clk 0:00:27.8]} 68... hxg5 {[%clk 0:00:09.6]}
69. fxg5 {[%clk 0:00:28.5]} 69... Bg7 {[%clk 0:00:04.3]} 70. Rxf7 {[%clk
0:00:29.3]} 70... Kxf7 {[%clk 0:00:06.2]} 71. Kg4 {[%clk 0:00:29.6]} 71... Kg8
{[%clk 0:00:06.6]} 72. Kf5 {[%clk 0:00:30.2]} 72... Kh7 {[%clk 0:00:07]} 73. g6+
{[%clk 0:00:31.1]} 73... Kg8 {[%clk 0:00:07.5]} 74. h6 {[%clk 0:00:33]} 74...
Bc3 {[%clk 0:00:07.4]} 75. Bf4 {[%clk 0:00:33]} 75... Bh8 {[%clk 0:00:05.5]} 76.
Be5 {[%clk 0:00:32.6]} 76... Bg7 {[%clk 0:00:06.5]} 77. h7+ {[%clk 0:00:30.1]}
77... Kh8 {[%clk 0:00:07.5]} 78. Bxg7+ {[%clk 0:00:32]} 78... Kxg7 {[%clk
0:00:08.4]} 79. h8=Q+ {[%clk 0:00:27.6]} 79... Kxh8 {[%clk 0:00:09]} 80. Kf6
{[%clk 0:00:29.5]} 80... Kg8 {[%clk 0:00:10]} 81. g7 {[%clk 0:00:31.3]} 1-0

[Event "*** Titled Tuesday Blitz"]
[Site "Chess.com"]
[Date "2020.02.04"]
[Round "4"]
[White "czasnaszachy"]
[Black "PchelkinVK"]
[Result "1-0"]
[WhiteElo "2315"]
[BlackElo "2471"]
[TimeControl "180+2"]
[EndTime "13:54:18 PST"]
[Termination "czasnaszachy won on time"]

1. d4 {[%clk 0:02:33.2]} 1... e5 {[%clk 0:03:00.5]} 2. dxe5 {[%clk 0:02:33.5]}
2... d6 {[%clk 0:03:02]} 3. exd6 {[%clk 0:02:34]} 3... Bxd6 {[%clk 0:03:03.9]}
4. Nf3 {[%clk 0:02:34.8]} 4... Nc6 {[%clk 0:03:05.2]} 5. Nc3 {[%clk 0:02:35.7]}
5... Bg4 {[%clk 0:03:06.2]} 6. Bg5 {[%clk 0:02:34.1]} 6... f6 {[%clk 0:03:07.1]}
7. Bh4 {[%clk 0:02:34.6]} 7... Qe7 {[%clk 0:03:08.7]} 8. e3 {[%clk 0:02:29.5]}
8... O-O-O {[%clk 0:03:09.4]} 9. Bd3 {[%clk 0:02:29.6]} 9... Ne5 {[%clk
0:03:03.1]} 10. Bg3 {[%clk 0:02:24.3]} 10... Nh6 {[%clk 0:02:56]} 11. Qe2 {[%clk
0:02:18.8]} 11... Bb4 {[%clk 0:02:32.7]} 12. Bxe5 {[%clk 0:01:48.6]} 12... fxe5
{[%clk 0:02:33.5]} 13. e4 {[%clk 0:01:49.4]} 13... Rdf8 {[%clk 0:02:27.9]} 14.
Qe3 {[%clk 0:01:49.1]} 14... Bc5 {[%clk 0:02:16.2]} 15. Nd5 {[%clk 0:01:49.5]}
15... Qd6 {[%clk 0:02:07.7]} 16. Qe2 {[%clk 0:01:44.7]} 16... Nf7 {[%clk
0:01:40]} 17. Ne3 {[%clk 0:01:14.2]} 17... Bh5 {[%clk 0:01:19.9]} 18. h4 {[%clk
0:01:11]} 18... Qb6 {[%clk 0:01:05.2]} 19. O-O-O {[%clk 0:01:10.2]} 19... Nd6
{[%clk 0:01:02.4]} 20. Nd5 {[%clk 0:01:04.4]} 20... Qa5 {[%clk 0:00:58.9]} 21.
Kb1 {[%clk 0:01:00.6]} 21... c6 {[%clk 0:00:53.6]} 22. Ne3 {[%clk 0:00:55]}
22... b5 {[%clk 0:00:48]} 23. Nf5 {[%clk 0:00:30.5]} 23... Bf7 {[%clk
0:00:33.3]} 24. b3 {[%clk 0:00:31.2]} 24... Nxf5 {[%clk 0:00:23.6]} 25. exf5
{[%clk 0:00:31.6]} 25... Re8 {[%clk 0:00:25.5]} 26. Be4 {[%clk 0:00:29.3]} 26...
Kc7 {[%clk 0:00:17.4]} 27. Ng5 {[%clk 0:00:25.3]} 27... Rhf8 {[%clk 0:00:12.6]}
28. Qd2 {[%clk 0:00:21.5]} 28... Qxd2 {[%clk 0:00:12.9]} 29. Rxd2 {[%clk
0:00:22.6]} 29... h6 {[%clk 0:00:14.3]} 30. Nxf7 {[%clk 0:00:21.5]} 30... Rxf7
{[%clk 0:00:16.2]} 31. Rhd1 {[%clk 0:00:22.2]} 31... Bd4 {[%clk 0:00:17.5]} 32.
f3 {[%clk 0:00:17]} 32... b4 {[%clk 0:00:15.6]} 33. g4 {[%clk 0:00:14.6]} 33...
Rd7 {[%clk 0:00:15.6]} 34. g5 {[%clk 0:00:15]} 34... hxg5 {[%clk 0:00:16.2]} 35.
hxg5 {[%clk 0:00:16.2]} 35... a5 {[%clk 0:00:18.1]} 36. Rh2 {[%clk 0:00:13.5]}
36... a4 {[%clk 0:00:19.1]} 37. Rh7 {[%clk 0:00:13.5]} 37... Ree7 {[%clk
0:00:19.8]} 38. g6 {[%clk 0:00:11.8]} 38... Kb6 {[%clk 0:00:19.9]} 39. Rxg7
{[%clk 0:00:10.2]} 39... Rxg7 {[%clk 0:00:20.1]} 40. f6 {[%clk 0:00:11.6]} 40...
Rg8 {[%clk 0:00:12.3]} 41. f7 {[%clk 0:00:10]} 41... Rf8 {[%clk 0:00:13.8]} 42.
g7 {[%clk 0:00:10.2]} 42... Rdxf7 {[%clk 0:00:14.3]} 43. gxf8=Q {[%clk
0:00:11.1]} 43... Rxf8 {[%clk 0:00:16.2]} 44. bxa4 {[%clk 0:00:12.1]} 44... Rh8
{[%clk 0:00:16.2]} 45. a5+ {[%clk 0:00:09.9]} 45... Kc5 {[%clk 0:00:17.1]} 46.
a3 {[%clk 0:00:07.9]} 46... bxa3 {[%clk 0:00:17]} 47. Ka2 {[%clk 0:00:09]} 47...
Rb8 {[%clk 0:00:15.3]} 48. Kxa3 {[%clk 0:00:09.4]} 48... Ra8 {[%clk 0:00:12.5]}
49. Kb3 {[%clk 0:00:06.1]} 49... Rxa5 {[%clk 0:00:12.7]} 50. c4 {[%clk 0:00:07]}
50... Ra7 {[%clk 0:00:11.6]} 51. Kc2 {[%clk 0:00:06.7]} 51... Kxc4 {[%clk
0:00:10.9]} 52. Bxc6 {[%clk 0:00:06.5]} 52... Ra2+ {[%clk 0:00:11.2]} 53. Kb1
{[%clk 0:00:06.1]} 53... Rb2+ {[%clk 0:00:12.7]} 54. Kc1 {[%clk 0:00:07]} 54...
Kc3 {[%clk 0:00:14.6]} 55. Be4 {[%clk 0:00:06.9]} 55... Ra2 {[%clk 0:00:14.7]}
56. Rd3+ {[%clk 0:00:07.9]} 56... Kc4 {[%clk 0:00:16]} 57. Rd1 {[%clk
0:00:07.4]} 57... Rf2 {[%clk 0:00:16.8]} 58. Kb1 {[%clk 0:00:07.6]} 58... Kb3
{[%clk 0:00:17.3]} 59. Rd3+ {[%clk 0:00:08.1]} 59... Bc3 {[%clk 0:00:18.7]} 60.
Bd5+ {[%clk 0:00:09.2]} 60... Kb4 {[%clk 0:00:19.2]} 61. Rd1 {[%clk 0:00:08.4]}
61... Rb2+ {[%clk 0:00:17.8]} 62. Kc1 {[%clk 0:00:09.4]} 62... Kc5 {[%clk
0:00:18.6]} 63. Be4 {[%clk 0:00:08.7]} 63... Ra2 {[%clk 0:00:17.4]} 64. Bc2
{[%clk 0:00:08.8]} 64... Bd4 {[%clk 0:00:15.3]} 65. Rd3 {[%clk 0:00:07.5]} 65...
Ra7 {[%clk 0:00:12.3]} 66. Kd1 {[%clk 0:00:08]} 66... Kc4 {[%clk 0:00:11.8]} 67.
Kc1 {[%clk 0:00:08.8]} 67... Ra1+ {[%clk 0:00:11.9]} 68. Kd2 {[%clk 0:00:09.7]}
68... Ra2 {[%clk 0:00:09.8]} 69. Rb3 {[%clk 0:00:07]} 69... Ra1 {[%clk
0:00:06.2]} 70. Rb1 {[%clk 0:00:07.9]} 70... Ra2 {[%clk 0:00:05.8]} 71. Rb3
{[%clk 0:00:08.5]} 71... Ra7 {[%clk 0:00:04.9]} 72. Rb1 {[%clk 0:00:06.8]} 72...
Rg7 {[%clk 0:00:05.5]} 73. Bd3+ {[%clk 0:00:07.6]} 73... Kd5 {[%clk 0:00:02.2]}
74. Be4+ {[%clk 0:00:07.2]} 74... Kc5 {[%clk 0:00:02.1]} 75. Rc1+ {[%clk
0:00:08.3]} 1-0

[Event "*** Titled Tuesday Blitz"]
[Site "Chess.com"]
[Date "2020.02.04"]
[Round "4"]
[White "M1711"]
[Black "SanchezKelvin"]
[Result "1/2-1/2"]
[WhiteElo "2499"]
[BlackElo "2350"]
[TimeControl "180+2"]
[EndTime "13:54:36 PST"]
[Termination "Game drawn - insufficient material"]

1. d4 {[%clk 0:03:01.9]} 1... Nf6 {[%clk 0:02:52.1]} 2. c4 {[%clk 0:03:02.9]}
2... g6 {[%clk 0:02:50.9]} 3. Nf3 {[%clk 0:03:03.9]} 3... Bg7 {[%clk 0:02:51.3]}
4. g3 {[%clk 0:03:05.7]} 4... O-O {[%clk 0:02:51.3]} 5. Bg2 {[%clk 0:03:07.4]}
5... d6 {[%clk 0:02:43]} 6. O-O {[%clk 0:03:08.1]} 6... c5 {[%clk 0:02:42.3]} 7.
Nc3 {[%clk 0:03:05.3]} 7... Nc6 {[%clk 0:02:41]} 8. dxc5 {[%clk 0:03:05.9]} 8...
dxc5 {[%clk 0:02:39.1]} 9. Be3 {[%clk 0:03:07.4]} 9... Be6 {[%clk 0:02:31.1]}
10. Qa4 {[%clk 0:03:05]} 10... Qa5 {[%clk 0:02:24.1]} 11. Qxa5 {[%clk
0:02:15.8]} 11... Nxa5 {[%clk 0:02:18.4]} 12. Bxc5 {[%clk 0:02:17.3]} 12... Nxc4
{[%clk 0:02:15.2]} 13. Ng5 {[%clk 0:02:18.1]} 13... Bg4 {[%clk 0:02:06.7]} 14.
Bxb7 {[%clk 0:02:05.9]} 14... Rab8 {[%clk 0:02:03.2]} 15. Bf3 {[%clk 0:02:04.1]}
15... Bxf3 {[%clk 0:01:53.5]} 16. exf3 {[%clk 0:01:48.2]} 16... Rxb2 {[%clk
0:01:45.4]} 17. Bxe7 {[%clk 0:01:44.9]} 17... Re8 {[%clk 0:01:40.3]} 18. Bxf6
{[%clk 0:01:39.5]} 18... Bxf6 {[%clk 0:01:38.6]} 19. Nge4 {[%clk 0:01:41.4]}
19... Bg7 {[%clk 0:01:36.8]} 20. Nd5 {[%clk 0:01:38.6]} 20... Nd2 {[%clk
0:01:27]} 21. Ndf6+ {[%clk 0:01:14.2]} 21... Bxf6 {[%clk 0:01:18.3]} 22. Nxf6+
{[%clk 0:01:16.1]} 22... Kf8 {[%clk 0:01:19.9]} 23. Nxe8 {[%clk 0:00:54.7]}
23... Nxf1 {[%clk 0:01:17.7]} 24. Nd6 {[%clk 0:00:46.2]} 24... Nd2 {[%clk
0:01:14.9]} 25. Kg2 {[%clk 0:00:43]} 25... a5 {[%clk 0:00:58.5]} 26. a4 {[%clk
0:00:39.3]} 26... Nb3 {[%clk 0:00:41.3]} 27. Ra3 {[%clk 0:00:35.1]} 27... Nc5
{[%clk 0:00:33.6]} 28. Nc4 {[%clk 0:00:19.1]} 28... Rb4 {[%clk 0:00:33.7]} 29.
Nxa5 {[%clk 0:00:18.5]} 29... Rxa4 {[%clk 0:00:34.8]} 30. Rxa4 {[%clk 0:00:19]}
30... Nxa4 {[%clk 0:00:36.7]} 31. Nc4 {[%clk 0:00:20.7]} 31... Ke7 {[%clk
0:00:37.6]} 32. Ne3 {[%clk 0:00:20.6]} 32... Ke6 {[%clk 0:00:38.6]} 33. h4
{[%clk 0:00:19.7]} 33... h5 {[%clk 0:00:38.6]} 34. g4 {[%clk 0:00:18]} 34... Nc3
{[%clk 0:00:39.3]} 35. Nf1 {[%clk 0:00:14.3]} 35... Ne2 {[%clk 0:00:39.7]} 36.
Ng3 {[%clk 0:00:07.5]} 36... Nf4+ {[%clk 0:00:37.6]} 37. Kf1 {[%clk 0:00:09]}
37... Ke5 {[%clk 0:00:34.8]} 38. Ne2 {[%clk 0:00:05.5]} 38... Nd3 {[%clk
0:00:10.5]} 39. Kg2 {[%clk 0:00:05.3]} 39... Ne1+ {[%clk 0:00:11]} 40. Kg3
{[%clk 0:00:05.6]} 40... Nd3 {[%clk 0:00:11.9]} 41. f4+ {[%clk 0:00:06.1]} 41...
Ke4 {[%clk 0:00:12.9]} 42. Nc3+ {[%clk 0:00:06.6]} 42... Kd4 {[%clk 0:00:13.7]}
43. Ne2+ {[%clk 0:00:07.4]} 43... Ke4 {[%clk 0:00:15.1]} 44. Nc3+ {[%clk
0:00:06.5]} 44... Kd4 {[%clk 0:00:16.2]} 45. Nb5+ {[%clk 0:00:08.1]} 45... Kd5
{[%clk 0:00:13.1]} 46. f5 {[%clk 0:00:06.7]} 46... hxg4 {[%clk 0:00:12.3]} 47.
fxg6 {[%clk 0:00:07.6]} 47... fxg6 {[%clk 0:00:13.6]} 48. Nc3+ {[%clk
0:00:07.3]} 48... Kd4 {[%clk 0:00:13.5]} 49. Nd1 {[%clk 0:00:06.8]} 49... Ne5
{[%clk 0:00:12.2]} 50. Ne3 {[%clk 0:00:07.2]} 50... Ke4 {[%clk 0:00:13.2]} 51.
Nxg4 {[%clk 0:00:07.9]} 51... Nd3 {[%clk 0:00:14]} 52. Nh2 {[%clk 0:00:07.2]}
52... Kf5 {[%clk 0:00:15.1]} 53. Nf3 {[%clk 0:00:07.8]} 53... Nc5 {[%clk
0:00:13.8]} 54. Nd4+ {[%clk 0:00:08.7]} 54... Ke4 {[%clk 0:00:15.1]} 55. Nc6
{[%clk 0:00:09.5]} 55... Kf5 {[%clk 0:00:16.3]} 56. Ne7+ {[%clk 0:00:09.4]}
56... Kf6 {[%clk 0:00:17.6]} 57. Nd5+ {[%clk 0:00:10.4]} 57... Ke5 {[%clk
0:00:18.4]} 58. Ne3 {[%clk 0:00:10.8]} 58... Ne4+ {[%clk 0:00:18.9]} 59. Kf3
{[%clk 0:00:12.4]} 59... Nd2+ {[%clk 0:00:20.1]} 60. Kg4 {[%clk 0:00:13.4]}
60... Kf6 {[%clk 0:00:21.4]} 61. Nd5+ {[%clk 0:00:13]} 61... Kf7 {[%clk
0:00:22.4]} 62. Nc3 {[%clk 0:00:11]} 62... Kf6 {[%clk 0:00:22]} 63. Kf4 {[%clk
0:00:11.9]} 63... Kg7 {[%clk 0:00:21.7]} 64. Ne4 {[%clk 0:00:11.9]} 64... Nc4
{[%clk 0:00:21.8]} 65. Nc5 {[%clk 0:00:10.7]} 65... Kf6 {[%clk 0:00:21.6]} 66.
Nd3 {[%clk 0:00:11.3]} 66... Nd2 {[%clk 0:00:21.7]} 67. Ne5 {[%clk 0:00:10.5]}
67... Nb3 {[%clk 0:00:21.8]} 68. Ng4+ {[%clk 0:00:11.3]} 68... Kg7 {[%clk
0:00:22.6]} 69. Kg5 {[%clk 0:00:12.9]} 69... Nc5 {[%clk 0:00:23.6]} 70. Kf4
{[%clk 0:00:10.1]} 70... Nd3+ {[%clk 0:00:22.2]} 71. Ke3 {[%clk 0:00:10.6]}
71... Nc5 {[%clk 0:00:23.1]} 72. Kd4 {[%clk 0:00:11.1]} 72... Ne6+ {[%clk
0:00:23.7]} 73. Ke5 {[%clk 0:00:12.6]} 73... Nc5 {[%clk 0:00:24.7]} 74. Kd4
{[%clk 0:00:07.1]} 74... Ne6+ {[%clk 0:00:22.7]} 75. Ke4 {[%clk 0:00:08.7]}
75... Nc5+ {[%clk 0:00:21.3]} 76. Ke5 {[%clk 0:00:06.9]} 76... Nd3+ {[%clk
0:00:21.6]} 77. Kd4 {[%clk 0:00:06.6]} 77... Nxf2 {[%clk 0:00:19.6]} 78. Nxf2
{[%clk 0:00:07.1]} 78... Kh6 {[%clk 0:00:21]} 79. Ne4 {[%clk 0:00:03.5]} 79...
Kh5 {[%clk 0:00:22.1]} 80. Ke3 {[%clk 0:00:04.2]} 80... Kxh4 {[%clk 0:00:23.4]}
81. Kf3 {[%clk 0:00:05.9]} 81... g5 {[%clk 0:00:24]} 82. Nf2 {[%clk 0:00:07.2]}
82... g4+ {[%clk 0:00:24.8]} 83. Kg2 {[%clk 0:00:08.8]} 83... g3 {[%clk
0:00:25.4]} 84. Nh3 {[%clk 0:00:10.3]} 84... Kg4 {[%clk 0:00:26.6]} 85. Ng1
{[%clk 0:00:12.2]} 85... Kf4 {[%clk 0:00:27.7]} 86. Nf3 {[%clk 0:00:14.1]} 86...
Kg4 {[%clk 0:00:28.9]} 87. Ne5+ {[%clk 0:00:16]} 87... Kf4 {[%clk 0:00:30]} 88.
Kh3 {[%clk 0:00:15.8]} 88... Kxe5 {[%clk 0:00:31]} 89. Kxg3 {[%clk 0:00:16.8]}
1/2-1/2